Cogmind - Beta 12 @@@ ROGUE MODE // 2023.11.01 @ 19:45:30 Player: Shin Result: Destroyed by D-53 Grenadier with Mini Grenade Launcher Performance ------------- Evolutions (0) 0 Regions Visited (4) 800 Robots Destroyed (19) 95 Value Destroyed (396) 396 Prototype IDs (23) 460 Alien Tech Used (0) 0 Bonus (300) 300 TOTAL SCORE: 2051 Bonus ------- Aligned with FarCom 300 Cogmind --------- Core Integrity 0/250 Matter 235/300 Energy 100/100 System Corruption 0% Temperature Cool (0) Movement Core (700) Ox13 Location -9/Mines Parts ------- > --- POWER (1) -------- (None) > --- PROPULSION (2) --- Light Treads > --- UTILITY (2) ------ High-capacity Storage Unit > --- WEAPON (2) ------- (None) > --- INVENTORY (20) --- Light Fission Core Light Treads Aluminum Leg Aluminum Leg Flying Fortress v7 Heat Sink Compact Matter Pod (150) Light Armor Plating Light Assault Rifle Makeshift Spear EMP Trap EMP Trap EMP Trap Peak State ------------ > --- POWER ------------ Light Ion Engine > --- PROPULSION ------- Aluminum Leg Aluminum Leg > --- UTILITY ---------- High-capacity Storage Unit Sensor Array > --- WEAPON ----------- Assault Rifle Light Assault Rifle > --- INVENTORY -------- Nuclear Core Reinforced Deuterium Engine Light Fission Core Light Treads Light Treads Aluminum Leg Aluminum Leg Wheel Flying Fortress v7 Heat Sink Compact Matter Pod Light Armor Plating Grenade Launcher Makeshift Spear EMP Trap EMP Trap EMP Trap [Rating: 13] Favorites ----------- Power Light Ion Engine Engine Light Ion Engine Propulsion Aluminum Leg Treads Light Treads Leg Aluminum Leg Wheel Wheel Utility Sensor Array Device Sensor Array Storage High-capacity Storage Unit Weapon Assault Rifle Ballistic Gun Assault Rifle Launcher Grenade Launcher Build | -11 -10 -10 -10 -9 ------- Run | Jun Mat Min Exi Min Slots Evolved . | . . . . . Power . | . . . . . Propulsion . | . . . . . Utility . | . . . . . Weapon . | . . . . . Parts Attached 15 | . 10 . . 5 Power 1 | . 1 . . . Engine 1 | . 1 . . . Core . | . . . . . Reactor . | . . . . . Propulsion 4 | . 2 . . 2 Treads 1 | . . . . 1 Leg 2 | . 2 . . . Wheel 1 | . . . . 1 Hover . | . . . . . Flight . | . . . . . Utility 3 | . 3 . . . Device 1 | . 1 . . . Storage 2 | . 2 . . . Processor . | . . . . . Hackware . | . . . . . Protection . | . . . . . Artifact . | . . . . . Weapon 7 | . 4 . . 3 Energy Gun . | . . . . . Energy Cannon . | . . . . . Ballistic Gun 3 | . 2 . . 1 Ballistic Cannon . | . . . . . Launcher 4 | . 2 . . 2 Special Weapon . | . . . . . Impact Weapon . | . . . . . Slashing Weapon . | . . . . . Piercing Weapon . | . . . . . Special Melee Weapon . | . . . . . Unidentified Prototypes . | . . . . . Parts Lost 7 | . . . . 7 Power 1 | . . . . 1 Propulsion 3 | . . . . 3 Utility 1 | . . . . 1 Weapon 2 | . . . . 2 Highest Loss Streak 7 | . . . . 7 To Critical Strikes . | . . . . . Average Slot Usage (%) 99 | . 99 100 100 95 Engine 13 | . 14 14 14 12 Leg 27 | . 28 28 28 26 Device 13 | . 13 14 14 13 Storage 14 | . 14 14 14 14 Ballistic Gun 27 | . 27 28 28 24 Naked Turns . | . . . . . Heaviest Build 47 | 13 47 47 47 47 Greatest Support 20 | 20 20 20 20 20 Greatest Overweight (x) 4 | . 2 2 2 4 Average Overweight (x) 1 | . . 2 2 2 Largest Inventory Capacity 20 | . 20 20 20 20 Average Capacity 15 | . 10 20 20 20 Most Carried 20 | . 9 12 19 20 Average Carried 11 | . 7 9 16 19 Final Capacity 20 | 8 20 20 20 20 Final Carried 19 | 6 8 12 19 16 Class Distribution -------------------- 90% | Mutant 9% | Skirmisher Dominant Class ---------------- Mutant | -10/Materials Mutant | -10/Mines Mutant | -10/Exiles Skirmisher | -9/Mines Resources | -11 -10 -10 -10 -9 ----------- Run | Jun Mat Min Exi Min Matter Collected 577 | 200 223 . . 154 Remotely . | . . . . . Salvage Created 579 | . 479 . . 100 Parts 37 | . 30 . . 7 Haulers Intercepted 1 | . 1 . . . Recyclers Shooed 1 | . 1 . . . Parts Field Recycled . | . . . . . Retrieved Matter . | . . . . . Parts Self-Destructed . | . . . . . Prevented . | . . . . . Kills | -11 -10 -10 -10 -9 ------- Run | Jun Mat Min Exi Min Combat Hostiles Destroyed 27 | . 9 . . 18 Guns 7 | . 7 . . . AOE 20 | . 2 . . 18 Classes Destroyed 8 | . 7 . . 1 Worker 1 | . 1 . . . Builder 2 | . 1 . . 1 Hauler 1 | . 1 . . . Recycler 1 | . 1 . . . Watcher 1 | . 1 . . . Swarmer 6 | . 2 . . 4 Grunt 7 | . 7 . . . Assembled 14 | . . . . 14 Best Kill Streak 15 | . 3 . . 15 Combat Bots Only 14 | . 3 . . 14 Max Kills in Single Turn 4 | . 3 . . 4 Gunslinging . | . . . . . Exploded 4 | . 2 . . 4 Melee . | . . . . . Uniques/NPCs Destroyed . | . . . . . Combat | -11 -10 -10 -10 -9 -------- Run | Jun Mat Min Exi Min Damage Taken 1081 | . 462 . . 619 Core 252 | . 98 . . 154 Absorbed by Shields . | . . . . . Core Remaining (%) 100 | 100 . . . . Volleys Fired 51 | . 42 . . 9 Largest 2 | . 2 . . 1 Hottest 40 | . 40 . . 30 Shots Fired 91 | . 82 . . 9 Gun 80 | . 80 . . . Cannon . | . . . . . Launcher 11 | . 2 . . 9 Special . | . . . . . Kinetic 80 | . 80 . . . Thermal . | . . . . . Explosive 11 | . 2 . . 9 Electromagnetic . | . . . . . Robot Hit Streak 7 | . 7 . . 5 Robot Miss Streak 3 | . 3 . . 1 Penetration Max . | . . . . . Secondary Targets 2 | . 2 . . . Max Gunslinging Chain 1 | . 1 . . . Shots Hit Robots 57 | . 50 . . 7 Core Hits 53 | . 26 . . 27 Critical Kills . | . . . . . Critical Parts Destroyed . | . . . . . Critical Strikes . | . . . . . Melee Attacks . | . . . . . Impact . | . . . . . Slashing . | . . . . . Piercing . | . . . . . Sneak Attacks . | . . . . . Combat Hostiles . | . . . . . Follow-up Attacks . | . . . . . Damage Inflicted 1668 | . 692 . . 976 Guns 551 | . 551 . . . Cannons . | . . . . . Explosions 1117 | . 141 . . 976 Melee . | . . . . . Ramming . | . . . . . Kinetic 551 | . 551 . . . Thermal . | . . . . . Explosive 1033 | . 57 . . 976 Electromagnetic 84 | . 84 . . . Impact . | . . . . . Slashing . | . . . . . Piercing . | . . . . . Highest Corruption . | . . . . . Average Corruption . | . . . . . Corruption Purged . | . . . . . Corruption Blocked . | . . . . . Overload Shots . | . . . . . Overflow Damage 92 | . . . . 92 Projectiles . | . . . . . Explosions 92 | . . . . 92 Melee . | . . . . . Knockbacks . | . . . . . Impact . | . . . . . Kinetic . | . . . . . Secondary . | . . . . . Self-Inflicted Damage 93 | . 41 . . 52 Shots 7 | . 3 . . 4 Rammed . | . . . . . Targets Rammed . | . . . . . Kicked . | . . . . . Crushed . | . . . . . Highest Temperature 36 | . 36 . . 15 Average Temperature 12 | . 12 . . 10 Received Heat Transfer 170 | . 150 . . 20 Siege Activations . | . . . . . Robots Corrupted . | . . . . . Combat Hostiles . | . . . . . Parts Fried . | . . . . . Impact Corruptions . | . . . . . Robots Melted . | . . . . . Combat Hostiles . | . . . . . Parts Melted . | . . . . . Heat Transferred . | . . . . . Parts Sabotaged . | . . . . . Parts Stolen . | . . . . . Parts Stripped . | . . . . . Power Chain Reactions 2 | . 2 . . . Missiles Intercepted . | . . . . . Alert | -11 -10 -10 -10 -9 ------- Run | Jun Mat Min Exi Min Peak Influence 279 | . 279 49 . 121 Initial 49 | . . 49 . . Average 87 | . 109 48 . 65 Maximum Alert Level 1 | . 1 . . . Low Security (%) 89 | . 82 100 . 100 Level 1 10 | . 17 . . . Level 2 . | . . . . . Level 3 . | . . . . . Level 4 . | . . . . . Level 5 . | . . . . . High Security . | . . . . . Max Security . | . . . . . Squads Dispatched 3 | . 3 . . . Investigation . | . . . . . Extermination . | . . . . . Reinforcement 3 | . 3 . . . Assault . | . . . . . Garrison . | . . . . . Intercept . | . . . . . Searches Triggered . | . . . . . Construction Impeded . | . . . . . Haulers Reinforced . | . . . . . Active Scanning Responses . | . . . . . Cargo Convoy Interrupts . | . . . . . Stealth | -11 -10 -10 -10 -9 --------- Run | Jun Mat Min Exi Min Distress Signals 1 | . 1 . . . Communications Jammed . | . . . . . Distress Signals . | . . . . . Times Spotted 42 | . 18 . . 24 Peak Tracking Total 20 | . 5 . . 20 Tactical Retreats 1 | . . . . 1 Traps | -11 -10 -10 -10 -9 ------- Run | Jun Mat Min Exi Min Traps Triggered . | . . . . . Indirectly . | . . . . . Trap Hack Attempts . | . . . . . Triggered . | . . . . . Disarmed . | . . . . . Reprogrammed . | . . . . . Reused . | . . . . . Traps Extracted . | . . . . . Installed . | . . . . . Triggered . | . . . . . Most Traps Carried 3 | . . 3 3 3 Exploded 2 | . . . . 2 Machines | -11 -10 -10 -10 -9 ---------- Run | Jun Mat Min Exi Min Machines Disabled 5 | . 5 . . . Max in Single Turn 3 | . 3 . . . Machines Repaired . | . . . . . Machines Sabotaged . | . . . . . Overloaded Fab Kills . | . . . . . Hacking | -11 -10 -10 -10 -9 --------- Run | Jun Mat Min Exi Min Machines Accessed 7 | . 5 . 2 . Terminals 4 | . 4 . . . Fabricators . | . . . . . Repair Stations . | . . . . . Recycling Units 1 | . 1 . . . Scanalyzers . | . . . . . Garrison Access . | . . . . . Total Hacks 14 | . 9 . 5 . Successful 6 | . 1 . 5 . Failed 8 | . 8 . . . Catastrophic 3 | . 3 . . . Database Lockouts . | . . . . . Manual 8 | . 7 . 1 . Terminals 7 | . 7 . . . Fabricators . | . . . . . Repair Stations . | . . . . . Recycling Units 2 | . 2 . . . Scanalyzers . | . . . . . Garrison Access . | . . . . . Terminal Hacks 6 | . 1 . 5 . Record 4 | . . . 4 . Zone Layout 1 | . 1 . . . EX-Prototype ID Bank 1 | . . . 1 . Fabricator Hacks . | . . . . . Repair Station Hacks . | . . . . . Recycling Unit Hacks . | . . . . . Scanalyzer . | . . . . . Garrison Access Hacks . | . . . . . Unauthorized Hacks . | . . . . . Terminals . | . . . . . Fabricators . | . . . . . Repair Stations . | . . . . . Recycling Units . | . . . . . Scanalyzers . | . . . . . Garrison Access . | . . . . . Data Cores Recovered . | . . . . . Used . | . . . . . Hacking Detections 4 | . 4 . . . Full Trace Events . | . . . . . Feedback Events . | . . . . . Feedback Blocked . | . . . . . Robot Schematics Acquired . | . . . . . Robots Built . | . . . . . Authchips . | . . . . . Time . | . . . . . Total Robot Build Rating . | . . . . . Part Schematics Acquired . | . . . . . Parts Built . | . . . . . Authchips . | . . . . . Time . | . . . . . Total Part Build Rating . | . . . . . Parts Repaired . | . . . . . Time . | . . . . . Parts Recycled . | . . . . . Recycled Matter . | . . . . . Retrieved Matter . | . . . . . Retrieved Components . | . . . . . Parts Scanalyzed . | . . . . . Part Schematics Acquired . | . . . . . Parts Damaged . | . . . . . Bothacking | -11 -10 -10 -10 -9 ------------ Run | Jun Mat Min Exi Min Used RIF Installer . | . . . . . Robots Hacked . | . . . . . Non-combat . | . . . . . Combat . | . . . . . Robot Hacks Applied . | . . . . . Relay Couplers Released . | . . . . . Fabnet Peak Effective % . | . . . . . Robots Rewired . | . . . . . Allies Hacked . | . . . . . Hacks Repelled . | . . . . . Allies | -11 -10 -10 -10 -9 -------- Run | Jun Mat Min Exi Min Total Allies . | . . . . . Largest Group . | . . . . . Highest-Rated Group . | . . . . . Highest-Rated Ally . | . . . . . Total Orders . | . . . . . Ally Attacks . | . . . . . Total Damage . | . . . . . Kills . | . . . . . Allies Corrupted . | . . . . . Allies Melted . | . . . . . Intel | -11 -10 -10 -10 -9 ------- Run | Jun Mat Min Exi Min Robot Analysis Total . | . . . . . Derelict Logs Recovered 1 | . . 1 . . Drone Launches . | . . . . . Drone Recoveries . | . . . . . Exploration | -11 -10 -10 -10 -9 ------------- Run | Jun Mat Min Exi Min Turns Passed 2223 | . 926 401 665 231 Spaces Moved 1053 | 1 564 153 255 80 Core . | . . . . . Treads 2 | . . . . 2 Legs 1045 | 1 564 153 255 72 Wheels 6 | . . . . 6 Hover . | . . . . . Flight . | . . . . . Fastest Speed 120 | 120 120 260 260 125 Average Speed 191 | 120 132 260 260 253 Slowest Speed 400 | 120 260 260 260 400 Overloaded Moves . | . . . . . Propulsion Burnouts . | . . . . . Robots Hopped . | . . . . . Cave-ins Triggered . | . . . . . Exploration Rate (%) 37 | 2 75 33 60 18 Regions Visited 4 Branch Regions 3 Pre-discovered Areas 2 | . . 1 1 . Known Exits Taken . | . . . . . Unknown Exits Taken 4 | 1 1 1 1 . Scrap Searched 1 | . . . . 1 Spaces Dug 8 | . 8 . . . Terrain Destroyed 78 | . 22 . . 56 Melee . | . . . . . Projectile . | . . . . . AOE 78 | . 22 . . 56 Terrain Rammed . | . . . . . Walls Destroyed . | . . . . . Machines Disabled . | . . . . . Actions | -11 -10 -10 -10 -9 --------- Run | Jun Mat Min Exi Min Total 1184 | . 670 157 258 99 Wait 37 | . 34 1 . 2 Move 1049 | . 563 152 254 80 Hop . | . . . . . Pick Up 23 | . 14 4 4 1 Fast Attach . | . . . . . Attach 4 | . 2 . . 2 Detach . | . . . . . Swap 11 | . 8 . . 3 Drop 9 | . 7 . . 2 Fire 51 | . 42 . . 9 Melee . | . . . . . Ram . | . . . . . Kick . | . . . . . Crush . | . . . . . Escape Stasis . | . . . . . Rewire . | . . . . . Trap . | . . . . . Miscellaneous . | . . . . . Route ------- -11/Junkyard -10/Materials (discovered 3 exits: [*Mat x2] / [*Min]) -10/Mines (discovered 2 exits: [*Mat] / *Exi) -10/Exiles -9/Mines History --------- Turn | Location | Event 1 | -11/Junkyard | Discovered new exit (range 0) 1 | -11/Junkyard | Entered Materials 301 | -10/Materials | Build established: Mutant 526 | -10/Materials | Discovered new exit (range 10) 761 | -10/Materials | Discovered new exit (range 8) 840 | -10/Materials | Discovered new exit (range 17) 927 | -10/Materials | Entered Mines 1044 | -10/Mines | Discovered new exit (range 9) 1107 | -10/Mines | A weapon hastily lodged in a ceiling crevice suddenly fell to the ground 1215 | -10/Mines | Found a hidden stash of uninstalled traps 1296 | -10/Mines | Learned location of Storage (-8) 1309 | -10/Mines | Deemed a non-threat by the Exiles lab entrance 1312 | -10/Mines | Discovered new exit (range 5) 1328 | -10/Mines | Entered Exiles 1412 | -10/Exiles | Met 8R-AWN 1461 | -10/Exiles | Met EX-HEX 1529 | -10/Exiles | Met EX-BIN 1568 | -10/Exiles | Aligned with FarCom system 1571 | -10/Exiles | Given EX-Vault access code 1633 | -10/Exiles | Opened EX-Vault 1672 | -10/Exiles | Found Flying Fortress v7 1735 | -10/Exiles | Warned to stay clear of 0b10 Research branches 1824 | -10/Exiles | Met EX-DEC 1845 | -10/Exiles | Learned location of Zion (-7) 1962 | -10/Exiles | Discovered new exit (range 14) 1993 | -10/Exiles | Left Exiles lab with Flying Fortress v7 1993 | -10/Exiles | Entered Mines 2022 | -9/Mines | Met a Derelict bent on vengeance 2163 | -9/Mines | Assembled infested the area 2188 | -9/Mines | Core integrity fell below 50% 2207 | -9/Mines | Core integrity fell below 20% 2224 | -9/Mines | Destroyed by D-53 Grenadier with Mini Grenade Launcher Last Messages --------------- 02201_ The unstable cave ceiling collapses. 02201_ Assault Rifle destroyed. 02202_ The unstable cave ceiling collapses. 02205_ R-06 Scavenger destroyed. 02206_ as-89569 destroyed. 02208_ The unstable cave ceiling collapses. 02208_ Grenade Launcher destroyed. 02208_ Lgt. Ion Engine destroyed. 02209_ The unstable cave ceiling collapses. 02209_ Dropped Rigged Rnf. Deuterium Engine. 02212_ Aluminum Leg destroyed. 02215_ as-99732 destroyed. 02215_ U-05 Engineer destroyed. 02217_ C-30 ARC bursts open, deploying its payload. 02217_ D-53 Grenadier unfolds itself. 02217_ as-17039 destroyed. 02218_ The unstable cave ceiling collapses. 02218_ Sensor Array destroyed. 02222_ as-95636 destroyed. 02224_ Wheel destroyed. Map ----- +----------------------------------------------------+ | ?????????????????????????????????????????????????? | | ?????????????????????????????????????????????????? | | ?????????????????????????????????????????????????? | | ?????????????????????????????????????????????????? | | ?????????????????????????????????????????????????? | | ?????????????????????????????????????????????????? | | ?????????????????????????????????????????????????? | | ?????????????????????????????????????????????????? | | ?????????????????????????????????????????????????? | | ?????????????????????????????????????????????????? | | ?????????????????????????????????????????????????? | | ?????????????????????????????????????????????????? | | ?????????????????????????????????????????????????? | | ?????????????????????????#???????????????????????? | | ????????????????????????? ##?????????????????????? | | ????????????????????????? ##????????????????????? | | ????????????????????????? ????????????????????? | | ????????????????????????# ?????????????????????? | | ????????????????????????# ?????????????????????? | | ????????????????????????# ?????????????????????? | | ????????????????????????# #?????????????????????? | | ????????????????????????# ##????????????????????? | | ???????????????##??????## #????????????????????? | | ??????????????? ?????## #????????????????????? | | ???????????????# ?????# ##???????????????????? | | ??????????????## ????## @ ##??????????????????? | | ??????????????# ###?# ##?????????????????? | | ??????????????# ### #?????????????????? | | ??????????????# # #?????????????????? | | ??????????????# ## ####?????????? | | ??????????????# "% d % ?????????? | | ??????????????## d ## ??????????? | | ??????????????### % # # ##????????????? | | ??????????????# ## = != #### #???????? | | ??????????????#### ! %* =% #??????? | | ?????????###?#### #;; [# #| ?? | | ?????????# ## # #####????????????? | | ?????????# ### # #????????????????? | | ?????????## ##?#########????????????????? | | ??????????## ##???????????????????????????? | | ???????????## = ##????????????????????????????? | | ????????????## ##?????????????????????????????? | | ?????????????### #??????????????????????????????? | | ???????????????# #??????????????????????????????? | | ???????????????# #??????????????????????????????? | | ???????????????# #??????????????????????????????? | | ???????????????# #??????????????????????????????? | | ???????????????# ##?????????????????????????????? | | ??????????????## ##????????????????????????????? | | ?????????????## ####?????????????????????????? | +----------------------------------------------------+ Best States ------------- Heat Dissipation 25 Energy Generation 10 Energy Capacity 250 Matter Stores 300 Matter Capacity 300 Sight Range 16 Robot Scan Range 14 Terrain Scan Density 10 Evasion (%) 55 Recoil Reduction 1 Item Schematics ----------------- None Robot Schematics ------------------ None Fabricated ------------ Nothing Alien Tech Used ----------------- None Achievements -------------- None Challenges ------------ None Game ------ Seed FocalTargetFlamer Manual? 0 Play Time 00:20:58 Cumulative 157.0 hours Start 2023.11.01 @ 19:25:24 End 2023.11.01 @ 19:45:30 Sessions 1 Manual Loads 0 Difficulty Rogue Special Mode None Game No. 113 Rogue 108 Adventurer 0 Explorer 5 Win Type - Total 2 Types 2/0/0/0/0/0/0/0/0 Lore% 58 Gallery% 68 Achievement% 48 Wizard Run 0 Options --------- ASCII 0 Keyboard 0 Movement Arrows Keybinds 1 Fullscreen 1 Font 18/TerminusBold Map View 76x50 Tactical HUD 1 Map Filters NONE Filters NONE Steam 1 RUN: 4691fc8e-1f84-41b5-beaf-2f732da0d073